bitfinex-derivatives/quotes_SOLF0:USTF0_20220106
["timestamp","ask_amount","ask_price","bid_price","bid_amount"]
[1641439237475,4.0,150.06,149.94,13.91485307]
[1641439237877,4.0,150.03,149.9,64.9813]
[1641439238077,6.66266907,150.04,149.9,64.9813]
[1641439238478,27.66479,149.96,149.9,64.9813]
[1641439238677,27.66479,149.96,149.88,67.1526]
[1641439238877,27.66479,149.96,149.9,24.0]
[1641439239079,63.699,150.03,149.9,30.6613376]
[1641439239578,63.699,150.03,149.9,6.6613376]
[1641439240077,63.699,150.03,149.9,10.6613376]
[1641439240278,63.699,150.03,149.9,6.6613376]
[1641439240476,27.66479,149.98,149.9,6.6613376]
[1641439240681,27.66479,149.98,149.9,10.6613376]
[1641439241381,27.66479,149.98,149.9,6.6613376]
[1641439241679,27.66479,149.98,149.9,10.6613376]
[1641439241877,27.66479,149.98,149.91,4.0]
[1641439242078,27.66479,149.98,149.93,20.0]
[1641439242278,27.66479,149.98,149.94,4.0]
[1641439242479,27.66479,149.98,149.93,4.0]
[1641439242680,27.66479,149.98,149.92,31.66479]
[1641439244182,27.66479,149.98,149.92,27.66479]
[1641439244380,27.66479,149.98,149.9,10.6613376]
[1641439244581,27.66479,149.98,149.9,6.6613376]
[1641439245182,27.66479,149.98,149.9,10.6613376]
[1641439245781,27.66479,149.98,149.9,6.6613376]
[1641439245981,27.66479,149.98,149.9,10.6613376]
[1641439246182,27.66479,149.98,149.91,4.0]
[1641439247581,27.66479,149.98,149.9,6.6613376]
[1641439247782,27.66479,149.98,149.9,10.6613376]
[1641439248185,27.66479,149.98,149.9,6.6613376]
[1641439248984,91.36379,150.03,149.92,4.0]
[1641439249184,91.36379,150.03,149.93,6.65978489]
[1641439249486,91.36379,150.03,149.93,10.65978489]
[1641439249683,27.66479,150.03,149.94,20.0]
[1641439249884,27.66479,150.03,149.94,24.0]
[1641439250085,27.66479,150.03,149.95,4.0]
[1641439250385,66.7323,150.09,149.97,6.65801125]
[1641439250585,27.66479,150.05,149.96,27.66479]
[1641439252088,27.66479,150.05,149.96,27.66479]
[1641439252488,27.66479,150.05,149.94,26.65934139]
[1641439252688,27.66479,150.05,149.94,30.65934139]
[1641439252887,27.66479,150.05,149.95,4.0]
[1641439253091,27.66479,150.08,150.01,24.0]
[1641439253288,27.66479,150.08,150.01,20.0]
[1641439253486,27.66479,150.08,150.0,6.65690321]
[1641439253487,3.43582372,150.04,150.0,6.65690321]
[1641439254090,2.372e-05,150.04,149.98,20.0]
[1641439254288,2.372e-05,150.04,150.0,6.65668164]
[1641439254489,2.372e-05,150.07,150.01,15.18952645]
[1641439255993,2.372e-05,150.07,150.02,13.91485307]
[1641439256594,27.66479,150.04,150.02,13.91485307]
[1641439256793,27.66479,150.04,149.97,6.6582329]
[1641439256794,27.66479,150.04,149.98,13.91485307]
[1641439258696,27.66479,150.04,149.99,13.91485307]
[1641439259896,27.66479,150.04,150.0,13.91485307]
[1641439262097,27.66479,150.04,149.99,13.91485307]
[1641439267908,27.66479,150.04,149.97,20.45431348]
[1641439268205,4.0,150.03,149.97,20.45431348]
[1641439268405,27.66479,150.04,149.97,20.45431348]
[1641439268606,27.66479,149.98,149.97,13.91485307]
[1641439269006,27.66479,149.98,149.95,13.91485307]
[1641439270807,27.66479,149.98,149.93,13.91485307]
[1641439272813,27.66479,149.98,149.94,13.91485307]
[1641439273815,32.37679052,149.98,149.94,13.91485307]
[1641439274014,4.71200052,149.98,149.94,13.91485307]
[1641439274513,4.71200052,149.99,149.95,13.91485307]
[1641439274714,32.37679052,149.99,149.95,13.91485307]
[1641439275814,32.37679052,149.99,149.98,4.7118081]
[1641439276013,32.37679052,149.99,149.98,8.1e-06]
[1641439276213,36.37679052,149.99,149.95,13.91485307]
[1641439276412,32.37679052,149.99,149.95,13.91485307]
[1641439277114,27.66479,149.99,149.95,13.91485307]
[1641439277314,27.66479,149.99,149.92,13.91485307]
[1641439278218,27.66479,149.99,149.93,13.91485307]
[1641439279615,27.66479,149.99,149.91,13.91485307]
[1641439280015,27.66479,150.01,149.91,13.91485307]
[1641439280618,27.66479,150.01,149.94,13.91485307]
[1641439281616,27.66479,150.01,149.95,13.91485307]
[1641439284519,27.66479,150.01,149.96,13.91485307]
[1641439287121,27.66479,150.01,149.97,13.91485307]
[1641439287319,27.66479,150.05,149.97,13.91485307]
[1641439287721,37.5687592,150.07,149.97,13.91485307]
[1641439287922,37.5687592,150.07,149.97,17.91485307]
[1641439288123,37.5687592,150.07,149.97,13.91485307]
[1641439288323,67.7711,150.08,149.99,13.91485307]
[1641439290125,67.7711,150.08,150.0,13.91485307]
[1641439295029,3.43533129,150.07,150.0,13.91485307]
[1641439295231,15.73622824,150.07,149.99,13.91485307]
[1641439296932,15.73622824,150.07,150.01,27.66479]
[1641439297533,3.43533129,150.07,150.01,41.57964307]
[1641439297934,3.43533129,150.07,150.01,48.23610316]
[1641439298535,3.43424515,150.08,150.02,21.72977746]
[1641439299635,27.66479,150.09,150.02,21.72977746]
[1641439300541,3.43422035,150.08,150.03,20.0]
[1641439301342,3.43422035,150.08,150.02,21.72977746]
[1641439301343,27.66479,150.09,150.02,21.72977746]
[1641439301539,27.66479,150.09,150.04,1.27468899]
[1641439302539,27.66479,150.09,150.04,13.91485307]
[1641439302739,62.5277,150.12,150.04,13.91485307]
[1641439302940,27.66479,150.11,150.04,13.91485307]
[1641439304238,3.4338528,150.1,150.04,13.91485307]
[1641439305041,3.4338528,150.1,150.03,13.91485307]
[1641439306442,3.4338528,150.1,150.03,33.91485307]
[1641439306644,3.4338528,150.1,150.05,13.91485307]
[1641439309249,3.4338528,150.11,150.05,21.72977746]
[1641439309449,3.4338528,150.11,150.08,20.0]
[1641439309650,37.5687592,150.16,150.08,26.65313862]
[1641439310848,37.5687592,150.16,150.08,30.65313862]
[1641439311049,37.5687592,150.16,150.11,27.66479]
[1641439311448,12.28948199,150.16,150.11,27.66479]
[1641439312251,12.28948199,150.16,150.09,27.66479]
[1641439312449,12.28948199,150.18,150.09,41.57964307]
[1641439315353,12.28948199,150.18,150.11,20.0]
[1641439315552,12.28948199,150.18,150.12,10.65136852]
[1641439315751,12.28948199,150.18,150.14,20.0]
[1641439316352,12.28948199,150.18,150.12,6.65136852]
[1641439317054,12.28948199,150.2,150.12,20.56622159]
[1641439318054,12.28948199,150.2,150.12,6.65136852]
[1641439319456,12.28948199,150.2,150.12,27.10547541]
[1641439320355,12.28948199,150.2,150.14,20.0]
[1641439321856,12.28948199,150.2,150.12,13.91485307]
[1641439323057,31.66479,150.21,150.09,34.31748601]
[1641439323258,4.0,150.2,150.09,34.31748601]
[1641439324458,4.0,150.19,150.09,34.31748601]
[1641439324859,4.0,150.16,150.09,6.65269601]
[1641439325062,4.0,150.16,150.08,10.08]
[1641439325261,27.66479,150.15,150.08,10.08]
[1641439325960,4.0,150.13,150.05,27.66479]
[1641439326159,4.0,150.13,150.02,108.42230704]
[1641439326360,4.0,150.13,150.06,13.91485307]
[1641439327061,12.29246917,150.14,150.06,13.91485307]
[1641439327459,12.29246917,150.14,150.03,20.45444753]
[1641439327460,37.5687592,150.13,150.03,20.45444753]
[1641439328162,37.5687592,150.13,150.06,20.0]
[1641439328363,12.29246917,150.14,150.06,20.0]
[1641439329562,27.66479,150.15,150.06,20.0]
[1641439329762,27.66479,150.15,150.07,13.91485307]
[1641439330962,27.66479,150.15,150.08,6.65335995]
[1641439331962,27.66479,150.15,150.09,13.91485307]
[1641439332662,27.66479,150.15,150.1,20.0]
[1641439332863,129.7586,150.18,150.1,24.0]
[1641439333065,27.66479,150.19,150.1,24.0]
[1641439333365,27.66479,150.19,150.13,27.66479]
[1641439335471,27.66479,150.19,150.12,13.91485307]
[1641439336574,4.70662052,150.15,150.12,20.45415624]
[1641439337374,32.37141052,150.15,150.12,20.45415624]
[1641439338474,4.70662052,150.15,150.12,20.45415624]
[1641439338975,27.66479,150.19,150.12,20.45415624]
[1641439339175,37.5687592,150.18,150.08,17.91485307]
[1641439339377,37.5687592,150.18,150.09,27.66479]
[1641439339575,4.70702697,150.12,150.09,27.66479]
[1641439342477,4.70702697,150.12,150.1,20.0]
[1641439342678,12.2887505,150.17,150.1,20.0]
[1641439343078,12.2887505,150.17,150.11,6.6520322]
[1641439343477,12.2887505,150.17,150.13,20.0]
[1641439343878,12.2887505,150.17,150.14,6.65048382]
[1641439344278,65.2335492,150.21,150.14,10.65048382]
[1641439344478,65.2335492,150.21,150.13,20.0]
[1641439344479,37.5687592,150.21,150.17,4.0]
[1641439344677,37.5687592,150.21,150.17,10.64915722]
[1641439345278,12.28079617,150.23,150.17,10.64915722]
[1641439346879,12.28079617,150.24,150.17,10.64915722]
[1641439349480,12.28079617,150.24,150.17,6.64915722]
[1641439349882,12.28079617,150.24,150.18,1.2761803]
[1641439350082,15.70972365,150.24,150.18,1.2761803]
[1641439350688,15.70972365,150.24,150.17,6.64915722]
[1641439350882,53.27848285,150.24,150.17,6.64915722]
[1641439351483,53.27848285,150.24,150.17,16.42915722]
[1641439354388,53.27848285,150.24,150.18,1.27611031]
[1641439355488,53.27848285,150.24,150.17,9.78]
[1641439356191,57.27848285,150.24,150.17,9.78]
[1641439357391,40.99768668,150.23,150.17,9.78]
[1641439358191,37.5687592,150.22,150.17,9.78]
[1641439359394,40.99768668,150.23,150.17,9.78]
[1641439361998,27.66479,150.22,150.17,9.78]
[1641439362797,15.70972365,150.21,150.17,9.78]
[1641439362997,15.70972365,150.21,150.17,2.25055406]
[1641439367400,15.70972365,150.21,150.19,20.0]
[1641439367701,15.70972365,150.21,150.17,2.25055406]
[1641439368302,3.42892748,150.21,150.17,2.25055406]
[1641439369202,3.42892748,150.21,150.2,20.0]
[1641439369402,3.42892748,150.21,150.17,2.25055406]
[1641439369403,3.42892748,150.21,150.18,20.0]
[1641439369704,25.51371748,150.22,150.18,21.27662813]
[1641439369902,15.01371748,150.22,150.18,21.27662813]
[1641439370805,15.01371748,150.22,150.18,20.0]
[1641439373404,12.27809331,150.24,150.18,20.0]
[1641439373604,12.27809331,150.24,150.18,24.0]
[1641439374205,12.27809331,150.24,150.21,27.66479]
[1641439374404,12.27809331,150.24,150.21,32.14679]
[1641439374807,12.27809331,150.27,150.21,32.14679]
[1641439376609,49.84685251,150.27,150.22,24.0]
[1641439376810,49.84685251,150.27,150.23,4.0]
[1641439377009,46.58685251,150.27,150.22,24.0]
[1641439377209,39.96685251,150.27,150.22,24.0]
[1641439377610,37.5687592,150.27,150.22,24.0]
[1641439377810,37.5687592,150.29,150.22,24.0]
[1641439378010,37.5687592,150.29,150.23,4.0]
[1641439378212,37.5687592,150.29,150.22,24.0]
[1641439378410,37.5687592,150.29,150.25,27.66479]
[1641439379311,37.5687592,150.3,150.25,27.66479]
[1641439379512,37.5687592,150.3,150.25,47.66479]
[1641439379913,37.5687592,150.3,150.22,88.1298]
[1641439380112,42.8007592,150.3,150.23,6.64672649]
[1641439380313,37.5687592,150.29,150.23,6.64672649]
[1641439381114,42.2157592,150.29,150.23,6.64672649]
[1641439381318,4.0,150.28,150.21,4.482]
[1641439381814,4.0,150.26,150.21,4.482]
[1641439382014,4.0,150.26,150.2,13.91485307]
[1641439382214,4.0,150.27,150.2,13.91485307]
[1641439382415,4.0,150.27,150.17,16.16540713]
[1641439382416,27.66479,150.21,150.17,16.16540713]
[1641439382614,34.14279,150.21,150.17,13.91485307]
[1641439383915,34.14279,150.21,150.16,9.84]
[1641439385316,6.478,150.21,150.16,9.84]
[1641439386517,6.478,150.21,150.19,27.66479]
[1641439386717,6.478,150.21,150.19,32.62879]
[1641439387319,37.5687592,150.26,150.19,32.62879]
[1641439387521,193.1013492,150.27,150.19,32.62879]
[1641439388020,130.3430492,150.27,150.19,32.62879]
[1641439388420,92.77429,150.27,150.19,32.62879]
[1641439388620,27.66479,150.29,150.21,6.64761018]
[1641439390422,27.66479,150.29,150.22,27.66479]
[1641439390822,37.5687592,150.3,150.24,6.64606387]
[1641439391023,37.5687592,150.3,150.26,20.0]
[1641439391924,32.5487592,150.32,150.26,20.0]
[1641439392525,32.5487592,150.32,150.29,47.66479]
[1641439392726,32.5487592,150.32,150.29,52.38679]
[1641439392925,55.69704107,150.36,150.29,52.38679]
[1641439393125,17.32637563,150.37,150.29,52.38679]
[1641439394528,17.32637563,150.37,150.33,20.0]
[1641439394727,17.32637563,150.37,150.33,24.713]
[1641439394928,17.32637563,150.37,150.33,4.713]
[1641439396129,55.69704107,150.4,150.33,4.713]
[1641439396731,55.69704107,150.4,150.33,24.713]
[1641439396931,17.57014107,150.4,150.36,6.64076767]
[1641439397130,92.54766883,150.45,150.39,26.63966536]
[1641439397331,88.30766883,150.45,150.39,30.63966536]
[1641439397533,42.89795138,150.41,150.4,4.0]
[1641439397731,1.07719498,150.41,150.4,4.0]
[1641439397934,80.66766883,150.45,150.4,4.0]
[1641439398231,80.66766883,150.45,150.39,26.63966536]
[1641439398432,117.40237251,150.5,150.43,6.63768212]
[1641439398632,117.40237251,150.5,150.44,27.66479]
[1641439398832,12.22598766,150.51,150.44,27.66479]
[1641439400933,12.22598766,150.51,150.46,20.0]
[1641439401335,12.22598766,150.51,150.44,47.66479]
[1641439401533,4.0,150.5,150.43,13.04968212]
[1641439401734,4.0,150.49,150.43,13.04968212]
[1641439401935,4.0,150.5,150.43,6.412]
[1641439402134,4.0,150.5,150.41,63.4516]
[1641439402336,4.0,150.49,150.41,63.4516]
[1641439402535,4.0,150.5,150.41,63.4516]
[1641439402735,4.0,150.49,150.4,13.91485307]
[1641439402936,4.0,150.45,150.4,13.91485307]
[1641439403136,12.22598766,150.52,150.4,4.69858036]
[1641439403337,4.0,150.44,150.4,4.69858036]
[1641439403535,4.0,150.41,150.4,8.036e-05]
[1641439403836,9.291,150.41,150.37,13.91485307]
[1641439404136,9.291,150.41,150.33,24.03485307]
[1641439404536,27.66479,150.4,150.33,24.03485307]
[1641439405136,27.66479,150.4,150.33,10.12]
[1641439405736,27.66479,150.42,150.33,30.12]
[1641439406036,12.22598766,150.39,150.33,15.695]
[1641439406938,4.0,150.4,150.33,5.575]
[1641439407237,12.22598766,150.41,150.33,5.575]
[1641439407439,12.22598766,150.41,150.33,25.575]
[1641439408639,12.22598766,150.41,150.36,6.64098818]
[1641439409838,12.22598766,150.44,150.36,6.64098818]
[1641439410139,12.22598766,150.44,150.37,20.0]
[1641439410341,12.22598766,150.44,150.36,6.64098818]
[1641439410840,15.63753424,150.44,150.36,6.64098818]
[1641439411642,15.63753424,150.44,150.37,1.28880461]
[1641439412442,37.60132682,150.43,150.36,26.64098818]
[1641439414747,37.60132682,150.43,150.36,6.64098818]
[1641439415547,57.23886106,150.44,150.37,1.28878268]
[1641439416148,53.23886106,150.44,150.37,1.28878268]
[1641439416348,41.0128734,150.43,150.36,6.64098818]
[1641439417449,37.60132682,150.43,150.36,6.64098818]
[1641439419750,37.60132682,150.43,150.37,1.288754]
[1641439421452,53.23886106,150.44,150.37,1.288754]
[1641439422354,53.23886106,150.44,150.37,5.288754]
[1641439422553,53.23886106,150.44,150.37,1.288754]
[1641439422955,53.23886106,150.44,150.4,27.66479]
[1641439423255,15.63753424,150.45,150.4,27.66479]
[1641439424156,53.23886106,150.45,150.4,20.14571557]
[1641439425462,15.63753424,150.45,150.4,20.14571557]
[1641439427166,15.63753424,150.45,150.39,20.0]
[1641439428968,15.63753424,150.45,150.37,27.66479]
[1641439429168,15.63753424,150.45,150.36,30.31584125]
[1641439429570,4.0,150.41,150.38,1.28947299]
[1641439429769,4.0,150.4,150.38,7.299e-05]
[1641439429969,4.0,150.4,150.36,13.91485307]
[1641439430371,15.63753424,150.45,150.36,13.91485307]
[1641439430372,4.0,150.39,150.36,13.91485307]
[1641439430570,4.0,150.37,150.36,5.307e-05]
[1641439430771,4.0,150.37,150.32,9.90005307]
[1641439430984,4.0,150.37,150.32,5.307e-05]
[1641439431174,31.66479,150.35,150.32,5.307e-05]
[1641439431372,27.66479,150.35,150.32,5.307e-05]
[1641439431574,27.66479,150.35,150.29,10.08]
[1641439432875,31.66479,150.35,150.29,10.08]
[1641439433176,4.0,150.3,150.26,6.56915356]
[1641439433377,27.66479,150.35,150.26,16.50915356]
[1641439433576,27.66479,150.35,150.26,21.44715356]
[1641439433776,4.0,150.33,150.26,21.44715356]
[1641439433976,31.66479,150.35,150.26,21.44715356]
[1641439434177,27.66479,150.35,150.26,21.44715356]
[1641439434679,12.23991661,150.34,150.26,14.878]
[1641439435177,12.23991661,150.34,150.27,20.0]
[1641439435778,27.66479,150.35,150.27,26.56915356]
[1641439436579,27.66479,150.35,150.29,24.0]
[1641439436779,27.66479,150.35,150.29,30.64407681]
[1641439437181,93.11569,150.38,150.29,30.64407681]
[1641439437884,93.11569,150.38,150.3,6.56915356]
[1641439438078,27.66479,150.38,150.3,6.56915356]
[1641439438480,27.66479,150.38,150.29,30.64407681]
[1641439438681,12.23648665,150.37,150.29,30.64407681]
[1641439439783,12.23648665,150.37,150.32,20.0]
[1641439440886,27.66479,150.4,150.32,20.0]
[1641439442888,27.66479,150.4,150.32,26.56905165]
[1641439445192,37.60132682,150.42,150.33,10.64209093]
[1641439445591,37.60132682,150.42,150.35,20.0]
[1641439445791,37.60132682,150.42,150.36,6.64076767]
[1641439446491,37.60132682,150.42,150.35,6.778]
[1641439446891,41.60132682,150.42,150.32,97.385]
[1641439447092,4.0,150.41,150.32,97.385]
[1641439447291,27.66479,150.41,150.32,97.385]
[1641439448593,12.22912896,150.4,150.32,97.385]
[1641439449592,12.22912896,150.4,150.32,77.385]
[1641439456102,27.66479,150.41,150.32,77.385]
[1641439456403,27.66479,150.41,150.33,6.56837946]
[1641439456605,31.66479,150.41,150.33,6.56837946]
[1641439456804,27.66479,150.41,150.33,6.56837946]
[1641439457207,12.23128355,150.4,150.32,77.385]
[1641439457607,4.0,150.39,150.3,10.12]
[1641439457808,4.0,150.34,150.24,63.05099321]
[1641439458007,4.0,150.33,150.24,63.05099321]
[1641439458911,4.0,150.33,150.24,56.40492934]
[1641439459512,4.0,150.34,150.24,56.40492934]
[1641439459714,27.66479,150.31,150.24,56.40492934]
[1641439459913,27.66479,150.31,150.22,17.48481528]
[1641439460814,27.66479,150.31,150.22,6.56867646]
[1641439461014,27.66479,150.31,150.24,14.10621722]
[1641439463416,93.14349,150.33,150.24,40.75250195]
[1641439463616,93.14349,150.33,150.25,14.10621722]
[1641439463817,93.14349,150.33,150.26,24.0]
[1641439464016,27.66479,150.33,150.26,20.0]
[1641439464217,27.66479,150.33,150.26,24.0]
[1641439464818,27.66479,150.33,150.31,4.70096324]
[1641439465919,67.0205,150.36,150.31,4.70096324]
[1641439466120,27.66479,150.37,150.31,4.70096324]
[1641439466321,65.26611682,150.38,150.31,4.70096324]
[1641439466521,37.60132682,150.38,150.33,24.0]
[1641439466721,37.60132682,150.38,150.36,20.0]
[1641439466922,37.60132682,150.38,150.34,6.64164979]
[1641439467722,37.60132682,150.38,150.36,4.70096324]
[1641439467923,27.66479,150.42,150.36,4.70096324]
[1641439468825,27.66479,150.42,150.39,4.70096324]
[1641439470228,3.41026658,150.41,150.39,4.70096324]
[1641439471831,3.41026658,150.41,150.38,10.64010624]
[1641439472030,37.60132682,150.46,150.4,14.10621722]
[1641439472228,43.29709343,150.49,150.4,14.10621722]
[1641439473030,43.29709343,150.49,150.4,34.10621722]
[1641439473532,15.63230343,150.48,150.44,4.69731528]
[1641439473730,15.63230343,150.48,150.44,11.43931528]
[1641439474930,3.41026658,150.48,150.44,11.43931528]
[1641439476231,65.26611682,150.51,150.44,11.43931528]
[1641439476232,15.62936705,150.5,150.44,11.43931528]
[1641439478132,65.26611682,150.51,150.44,11.43931528]
[1641439478332,27.66479,150.51,150.44,6.742]
[1641439479632,31.66479,150.51,150.44,6.742]
[1641439479932,27.66479,150.48,150.44,6.742]
[1641439480134,27.66479,150.51,150.44,6.742]
[1641439481038,4.0,150.48,150.44,6.742]
[1641439481235,4.0,150.46,150.44,6.742]
[1641439481933,6.64231152,150.5,150.38,9.86]
[1641439481934,58.73928172,150.45,150.4,4.69731528]
[1641439483637,58.73928172,150.45,150.36,6.56872367]
[1641439483638,58.73928172,150.45,150.39,5.98588309]
[1641439483837,15.63449196,150.44,150.39,5.98588309]
[1641439484536,15.63449196,150.44,150.39,4.69731528]
[1641439485437,15.63449196,150.44,150.35,15.39478503]
[1641439485938,27.66479,150.41,150.35,15.39478503]
[1641439486537,27.66479,150.41,150.38,4.69919941]
[1641439487338,27.66479,150.41,150.35,15.39478503]
[1641439487539,4.0,150.39,150.35,15.39478503]
[1641439487739,3.40970172,150.4,150.35,15.39478503]
[1641439487942,27.66479,150.36,150.35,15.39478503]
[1641439488939,31.07714006,150.36,150.31,14.10621722]
[1641439489743,27.66479,150.36,150.31,14.10621722]
[1641439489941,3.41203464,150.35,150.31,14.10621722]
[1641439490742,27.66479,150.36,150.3,15.39478503]
[1641439491743,3.41194726,150.35,150.31,14.10621722]
[1641439492344,3.41194726,150.35,150.33,24.0]
[1641439492743,65.26611682,150.41,150.33,30.64231152]
[1641439493949,3.41038193,150.4,150.35,14.10621722]
[1641439494151,3.41038193,150.4,150.35,19.14321722]
[1641439494849,15.63695505,150.43,150.36,15.39478503]
[1641439495654,15.63695505,150.43,150.39,4.0]
[1641439496054,15.63695505,150.43,150.38,27.66479]
[1641439496655,15.63695505,150.43,150.38,31.66479]
[1641439497055,147.12411934,150.49,150.39,1.2884599]
[1641439497056,53.23828187,150.48,150.39,1.2884599]
[1641439498056,27.66479,150.44,150.39,20.6740936]
[1641439498655,15.63695505,150.48,150.39,20.6740936]
[1641439499358,27.66479,150.49,150.39,21.96257013]
[1641439500056,55.32958,150.49,150.39,21.96257013]
[1641439500258,15.63327075,150.48,150.39,21.96257013]
[1641439503959,15.63327075,150.48,150.44,20.0]
[1641439504159,15.63327075,150.48,150.44,25.211]
[1641439504761,3.40945113,150.48,150.44,25.211]
[1641439504961,3.40945113,150.49,150.45,1.28847653]
[1641439506164,100.44802682,150.53,150.44,25.211]
[1641439506363,53.22794947,150.52,150.44,25.211]
[1641439507166,37.60132682,150.52,150.45,1.28879871]
[1641439507365,15.62662265,150.53,150.45,1.28879871]
[1641439508067,15.62662265,150.53,150.45,27.66479]
[1641439508470,15.62662265,150.53,150.45,31.66479]
[1641439508769,15.62662265,150.53,150.45,27.66479]
[1641439508968,15.62662265,150.53,150.44,25.211]
[1641439509371,15.62662265,150.53,150.46,1.28885468]
[1641439510173,15.62662265,150.53,150.44,43.31721722]
[1641439510371,15.62662265,150.53,150.45,1.28884375]
[1641439510573,19.62662265,150.53,150.45,1.28884375]
[1641439510772,4.0,150.52,150.45,1.28884375]
[1641439510971,15.62662265,150.53,150.45,1.28884375]
[1641439511172,19.62662265,150.53,150.45,1.28884375]
[1641439511372,19.62662265,150.53,150.44,9.72]
[1641439511573,15.62662265,150.53,150.44,9.72]
[1641439512177,27.66479,150.51,150.44,9.72]
[1641439512373,65.26611682,150.51,150.44,9.72]
[1641439513773,12.21874607,150.5,150.45,1.28864644]
[1641439513974,15.62662265,150.5,150.45,1.28864644]
[1641439514174,27.66479,150.48,150.45,1.28864644]
[1641439514573,27.66479,150.48,150.44,9.72]
[1641439515576,3.40787658,150.47,150.44,9.72]
[1641439515777,3.40787658,150.47,150.44,2.20416078]
[1641439520779,3.40787658,150.47,150.44,7.97616078]
[1641439521179,3.40787658,150.47,150.46,24.0]
[1641439521383,37.60132682,150.51,150.46,24.0]
[1641439521579,37.60132682,150.51,150.47,4.0]
[1641439521783,37.60132682,150.51,150.49,24.0]
[1641439521982,37.60132682,150.53,150.49,24.428]
[1641439522981,12.21831059,150.54,150.49,24.428]
[1641439524784,12.21831059,150.54,150.49,28.428]
[1641439525188,27.66479,150.55,150.49,24.428]
[1641439525886,27.66479,150.55,150.49,4.428]
[1641439527289,12.2138227,150.54,150.49,4.428]
[1641439530191,12.2138227,150.54,150.49,8.428]
[1641439530594,12.2138227,150.54,150.49,18.448]
[1641439530790,27.66479,150.55,150.49,14.448]
[1641439531493,31.66479,150.55,150.44,2.20416078]
[1641439531693,27.66479,150.55,150.44,2.20416078]
[1641439531995,4.0,150.52,150.41,6.63878377]
[1641439532295,27.66479,150.49,150.43,37.60479]
[1641439533097,27.66479,150.49,150.43,27.66479]
[1641439534997,27.66479,150.49,150.42,10.06]
[1641439535198,104.76662682,150.53,150.43,4.0]
[1641439535497,104.76662682,150.53,150.43,4.302]
[1641439535697,41.60132682,150.52,150.43,4.302]
[1641439535896,37.60132682,150.52,150.43,4.302]
[1641439536096,41.60132682,150.52,150.43,4.302]
[1641439536495,27.66479,150.5,150.43,4.302]
[1641439538598,27.66479,150.5,150.43,8.302]
[1641439539197,27.66479,150.5,150.44,4.0]
[1641439541200,27.66479,150.5,150.43,8.302]
[1641439541403,27.66479,150.5,150.44,4.0]
[1641439541600,27.66479,150.5,150.43,8.302]
[1641439542201,27.66479,150.5,150.43,4.302]
[1641439543101,27.66479,150.5,150.43,8.302]
[1641439544104,67.1653,150.53,150.45,24.0]
[1641439544905,67.1653,150.53,150.46,4.0]
[1641439545607,67.1653,150.53,150.43,4.302]
[1641439545807,67.1653,150.53,150.43,25.84827909]
[1641439546407,27.66479,150.52,150.43,25.84827909]
[1641439546706,27.66479,150.52,150.44,4.0]
[1641439547907,27.66479,150.52,150.49,4.69569821]
[1641439550408,27.66479,150.52,150.48,4.69569821]
[1641439551309,27.66479,150.52,150.49,4.239]
[1641439552609,27.66479,150.52,150.48,4.69569821]
[1641439555812,37.60132682,150.55,150.48,4.69569821]
[1641439556011,37.60132682,150.55,150.48,11.49869821]
[1641439557512,65.26611682,150.55,150.49,4.69569821]
[1641439557711,27.66479,150.55,150.49,4.69569821]
[1641439558813,12.21630788,150.54,150.49,4.69569821]
[1641439559012,12.21630788,150.54,150.51,24.0]
[1641439559212,12.21630788,150.54,150.52,4.0]
[1641439559412,12.21630788,150.54,150.53,31.66479]
[1641439559612,34.7576347,150.55,150.53,31.66479]
[1641439559813,30.7576347,150.55,150.54,24.0]
[1641439560011,93.4015347,150.61,150.53,27.66479]
[1641439560215,93.4015347,150.61,150.52,73.3117]
[1641439560816,4.0,150.58,150.52,69.3117]
[1641439561016,93.4015347,150.61,150.52,4.171]
[1641439561017,4.0,150.57,150.52,4.171]
[1641439561216,4.0,150.56,150.54,4.69397609]
[1641439561420,27.66479,150.55,150.54,4.69397609]
[1641439561916,27.66479,150.55,150.54,7.609e-05]
[1641439562117,35.07005069,150.55,150.51,4.69491767]
[1641439562317,31.07005069,150.55,150.51,4.69491767]